bitfinex-derivatives/quotes_BTCF0:USTF0_20240830
["timestamp","ask_amount","ask_price","bid_price","bid_amount"]
[1725027552879,0.3528,59272.0,59259.0,0.084361]
[1725027553086,0.06,59272.0,59269.0,0.36]
[1725027553382,0.06,59272.0,59270.0,0.1826394]
[1725027553383,0.01,59272.0,59270.0,0.1826394]
[1725027553564,0.01,59278.0,59270.0,0.1826394]
[1725027553565,0.445142,59274.0,59270.0,0.1826394]
[1725027553771,0.3708,59274.0,59270.0,0.0011594]
[1725027553967,0.3708,59274.0,59271.0,0.18148]
[1725027553968,0.3608,59274.0,59271.0,0.18148]
[1725027554482,0.3608,59274.0,59272.0,0.0011594]
[1725027555273,0.3608,59274.0,59273.0,0.0855014]
[1725027555482,0.00025316,59278.0,59273.0,0.0011594]
[1725027555682,0.00025316,59278.0,59277.0,0.805137]
[1725027555899,0.00025316,59278.0,59277.0,1.016097]
[1725027556381,0.00025316,59278.0,59277.0,1.5233364]
[1725027556683,0.3608,59290.0,59277.0,2.0389994]
[1725027556882,0.3608,59290.0,59282.0,0.084329]
[1725027557076,0.084335,59278.0,59277.0,0.1825994]
[1725027557383,0.545135,59278.0,59277.0,0.0011594]
[1725027558466,0.545135,59278.0,59264.0,0.47044]
[1725027558467,0.084354,59265.0,59264.0,0.18144]
[1725027558673,0.204354,59265.0,59255.0,0.084367]
[1725027559184,0.12,59265.0,59264.0,0.084355]
[1725027559374,0.05,59265.0,59262.0,0.3608]
[1725027559681,0.4108,59265.0,59258.0,0.00025316]
[1725027560070,0.00025316,59269.0,59265.0,0.084353]
[1725027560274,0.41105316,59269.0,59266.0,0.68014]
[1725027560672,0.05025316,59269.0,59266.0,0.68014]
[1725027561273,0.05025316,59269.0,59268.0,0.084349]
[1725027561672,0.05,59269.0,59268.0,1.190509]
[1725027561873,0.3608,59289.0,59268.0,1.89417727]
[1725027562076,0.4908,59289.0,59283.0,0.36]
[1725027562286,0.4908,59289.0,59284.0,0.084326]
[1725027562584,0.4908,59289.0,59285.0,0.18144]
[1725027563374,0.13,59289.0,59288.0,0.445121]
[1725027563579,0.137,59289.0,59288.0,0.445121]
[1725027564787,0.137,59289.0,59285.0,0.084325]
[1725027564976,0.084322,59287.0,59286.0,0.18144]
[1725027565178,0.214322,59287.0,59285.0,0.002]
[1725027565378,0.084324,59286.0,59285.0,0.002]
[1725027565579,0.184324,59286.0,59285.0,0.002]
[1725027565987,0.184324,59286.0,59285.0,0.092325]
[1725027565988,0.1,59286.0,59285.0,0.092325]
[1725027566386,0.1,59286.0,59285.0,0.008]
[1725027567088,0.1,59286.0,59285.0,0.1894]
[1725027567291,0.1,59286.0,59285.0,0.273725]
[1725027567590,0.1,59286.0,59285.0,1.379765]
[1725027567793,0.4451,59303.0,59285.0,1.379765]
[1725027567794,0.084301,59302.0,59291.0,0.084315]
[1725027568098,0.084301,59302.0,59291.0,0.444315]
[1725027568099,0.084303,59301.0,59291.0,0.444315]
[1725027568283,0.12,59301.0,59291.0,0.36]
[1725027568794,0.08431,59296.0,59291.0,0.36]
[1725027569087,0.20431,59296.0,59291.0,0.36]
[1725027569689,0.3608,59292.0,59291.0,0.006]
[1725027569883,0.4808,59292.0,59291.0,0.006]
[1725027570209,0.565115,59292.0,59291.0,0.1874]
[1725027570890,0.565115,59292.0,59291.0,0.006]
[1725027571393,1.671075,59292.0,59281.0,0.00025316]
[1725027571588,0.3608,59282.0,59281.0,0.00025316]
[1725027571893,0.12,59282.0,59281.0,0.08458416]
[1725027572096,0.204329,59282.0,59281.0,0.00025316]
[1725027572400,0.204329,59282.0,59275.0,0.084339]
[1725027572401,0.084352,59267.0,59264.0,0.00842221]
[1725027572690,0.084357,59263.0,59259.0,0.00854376]
[1725027572880,0.084357,59263.0,59258.0,0.1814]
[1725027572881,0.3608,59261.0,59258.0,0.1814]
[1725027573080,0.12,59261.0,59258.0,0.1814]
[1725027573291,0.084361,59260.0,59258.0,0.1814]
[1725027573482,0.13,59260.0,59256.0,0.36]
[1725027573989,0.084364,59258.0,59256.0,0.36]
[1725027574180,0.11,59258.0,59256.0,0.36]
[1725027574493,0.11,59258.0,59257.0,0.084365]
[1725027574683,0.11,59258.0,59256.0,0.36]
[1725027574991,0.106,59258.0,59256.0,0.36]
[1725027575583,0.106,59258.0,59254.0,0.00025316]
[1725027575584,0.084368,59255.0,59254.0,0.00025316]
[1725027575791,0.204368,59255.0,59254.0,0.00025316]
[1725027576091,0.109,59255.0,59254.0,0.00025316]
[1725027576500,0.109,59255.0,59254.0,0.08462216]
[1725027577196,0.001,59258.0,59257.0,0.084365]
[1725027577498,0.061,59258.0,59257.0,0.875165]
[1725027577687,0.061,59258.0,59257.0,0.514365]
[1725027577889,0.061,59258.0,59257.0,0.875165]
[1725027578087,0.06,59258.0,59257.0,0.875165]
[1725027578696,0.06,59258.0,59257.0,0.514365]
[1725027579293,0.4208,59258.0,59257.0,0.514365]
[1725027579481,0.061,59258.0,59257.0,0.875165]
[1725027579690,0.061,59258.0,59257.0,1.381445]
[1725027579883,0.061,59258.0,59257.0,0.875165]
[1725027580488,0.3608,59268.0,59264.0,0.084355]
[1725027580704,0.05025316,59265.0,59264.0,0.084355]
[1725027581093,0.05025316,59265.0,59260.0,0.15143172]
[1725027581288,0.05025316,59265.0,59262.0,0.05030521]
[1725027581592,0.05025316,59265.0,59260.0,0.23174521]
[1725027581989,0.05025316,59265.0,59260.0,0.18144]
[1725027582195,0.445159,59261.0,59260.0,0.18144]
[1725027582390,0.575159,59261.0,59260.0,0.18144]
[1725027583198,0.4908,59261.0,59260.0,0.18144]
[1725027583392,0.13,59261.0,59260.0,0.18144]
[1725027583596,0.131,59261.0,59260.0,0.18144]
[1725027583895,0.131,59261.0,59256.0,0.13467121]
[1725027584092,0.131,59261.0,59260.0,0.18136]
[1725027584292,0.131,59261.0,59260.0,0.265721]
[1725027584686,0.131,59261.0,59260.0,0.626521]
[1725027584893,0.131,59261.0,59260.0,0.67682621]
[1725027585086,0.131,59261.0,59260.0,0.626521]
[1725027585290,0.131,59261.0,59260.0,0.67684422]
[1725027585593,0.131,59261.0,59260.0,0.65357389]
[1725027586098,0.131,59261.0,59260.0,0.70989509]
[1725027586400,0.131,59261.0,59260.0,0.65957389]
[1725027587507,0.0046,59288.0,59271.0,0.084344]
[1725027587694,0.0359,59288.0,59287.0,0.084321]
[1725027588001,0.769292,59309.0,59292.0,0.084315]
[1725027588201,0.769292,59309.0,59287.0,0.3608]
[1725027588202,0.3608,59293.0,59287.0,0.18136]
[1725027588390,0.4708,59293.0,59288.0,0.18136]
[1725027588598,0.005,59288.0,59285.0,0.00025316]
[1725027588900,0.115,59288.0,59286.0,0.18136]
[1725027589108,0.115,59288.0,59285.0,0.00025316]
[1725027589494,0.11,59288.0,59286.0,0.18132]
[1725027589688,0.11,59288.0,59285.0,0.00025316]
[1725027590095,0.445124,59286.0,59285.0,0.00025316]
[1725027590299,0.575124,59286.0,59285.0,0.00025316]
[1725027591090,1.765488,59286.0,59285.0,0.00025316]
[1725027591298,1.681164,59286.0,59285.0,0.00025316]
[1725027591499,0.13,59286.0,59285.0,0.36105316]
[1725027591703,0.06,59286.0,59285.0,0.00025316]
[1725027591899,1.250364,59286.0,59285.0,0.00025316]
[1725027592102,0.084327,59284.0,59275.0,0.18132]
[1725027592403,0.05,59284.0,59278.0,0.3608]
[1725027592601,0.05,59284.0,59283.0,0.445128]
[1725027592992,0.004,59286.0,59283.0,0.951168]
[1725027593194,0.004,59286.0,59285.0,0.514325]
[1725027593792,0.00025316,59290.0,59289.0,0.08432]
[1725027594102,0.00025316,59290.0,59289.0,0.44512]
[1725027596107,0.145,59309.0,59289.0,0.44512]
[1725027596404,0.3608,59308.0,59299.0,0.3608]
[1725027596600,0.3608,59302.0,59295.0,0.18128]
[1725027596795,0.084308,59298.0,59289.0,0.3618]
[1725027597002,0.12,59298.0,59290.0,0.084318]
[1725027597196,0.12,59298.0,59293.0,0.43]
[1725027597402,0.12,59298.0,59291.0,0.084315]
[1725027597705,0.12,59298.0,59293.0,0.3608]
[1725027597900,0.12,59298.0,59296.0,0.3608]
[1725027598801,0.12,59298.0,59297.0,0.18128]
[1725027599209,0.123,59298.0,59295.0,0.36]
[1725027599396,0.123,59298.0,59296.0,0.18128]
[1725027599603,0.084308,59297.0,59296.0,0.18128]
[1725027599902,0.084308,59297.0,59291.0,0.18128]
[1725027599903,0.084315,59293.0,59291.0,0.18128]
[1725027600108,0.084315,59292.0,59291.0,0.18128]
[1725027600406,0.084315,59292.0,59288.0,0.36105293]
[1725027600407,0.084318,59290.0,59289.0,0.18128]
[1725027600601,0.194318,59290.0,59289.0,0.18128]
[1725027600795,0.11,59290.0,59289.0,0.54128]
[1725027601109,0.11,59290.0,59289.0,0.6256]
[1725027601302,0.11,59290.0,59289.0,0.44432]
[1725027601708,0.11,59290.0,59289.0,0.80512]
[1725027601906,0.11,59290.0,59289.0,0.44432]
[1725027602214,0.11,59290.0,59289.0,0.47114581]
[1725027602406,0.11,59290.0,59289.0,0.38682581]
[1725027602601,0.11,59290.0,59288.0,0.18153293]
[1725027602602,0.08432,59289.0,59288.0,0.18153293]
[1725027602908,0.20432,59289.0,59288.0,0.18153293]
[1725027603111,0.19932,59289.0,59288.0,0.18153293]
[1725027603313,0.19932,59289.0,59288.0,0.00025293]
[1725027603611,0.084322,59288.0,59276.0,0.18128]
[1725027603910,0.084337,59277.0,59276.0,0.18128]
[1725027604113,0.194337,59277.0,59276.0,0.18128]
[1725027604307,1.300457,59277.0,59276.0,0.18128]
[1725027604506,1.300457,59277.0,59255.0,0.3608]
[1725027604507,0.084338,59276.0,59260.0,0.00827842]
[1725027604816,0.084338,59276.0,59255.0,0.626448]
[1725027604817,0.084364,59258.0,59255.0,0.3608]
[1725027605002,0.084364,59258.0,59255.0,0.445168]
[1725027605003,0.11,59258.0,59255.0,0.445168]
[1725027605205,0.11,59258.0,59255.0,0.3608]
[1725027605708,0.3608,59256.0,59251.0,0.00025293]
[1725027605908,0.084372,59252.0,59251.0,0.00025293]
[1725027606111,0.13,59252.0,59251.0,0.00025293]
[1725027606311,0.128,59252.0,59251.0,0.00025293]
[1725027606813,0.128,59252.0,59251.0,0.08462693]
[1725027607013,0.128,59252.0,59251.0,0.00025293]
[1725027607205,0.129,59252.0,59251.0,0.00025293]
[1725027607812,0.213372,59252.0,59251.0,0.00025293]
[1725027608214,0.129,59252.0,59251.0,0.00025293]
[1725027608716,0.129,59252.0,59251.0,0.36105293]
[1725027609113,0.129,59252.0,59251.0,0.00025293]
[1725027609315,0.129,59252.0,59251.0,0.36105293]
[1725027609516,0.129,59252.0,59251.0,0.44542693]
[1725027609517,0.001,59252.0,59251.0,0.44542693]
[1725027609717,0.051,59252.0,59251.0,0.44542693]
[1725027610217,0.051,59252.0,59251.0,0.36105293]
[1725027610812,0.135372,59252.0,59251.0,0.00025293]
[1725027611012,1.51812,59252.0,59234.0,0.6606]
[1725027611322,0.3608,59244.0,59234.0,0.3608]
[1725027611508,0.3608,59237.0,59230.0,0.32144259]
[1725027611713,0.3608,59237.0,59225.0,0.18136]
[1725027611714,0.3608,59232.0,59225.0,0.18136]
[1725027611916,0.3608,59226.0,59217.0,0.38678155]
[1725027612110,0.00025315,59227.0,59226.0,0.3608]
[1725027612316,0.05025315,59227.0,59226.0,0.3608]
[1725027612627,0.06025315,59227.0,59226.0,0.3608]
[1725027613926,0.06025315,59227.0,59226.0,0.445209]
[1725027614516,0.3608,59243.0,59226.0,0.3608]
[1725027614726,0.12,59243.0,59242.0,0.3608]
[1725027615025,0.12,59243.0,59242.0,0.084386]
[1725027615237,0.12,59243.0,59242.0,0.3608]
[1725027615419,0.12,59243.0,59240.0,0.18132]
[1725027615816,0.12,59243.0,59238.0,0.3608]
[1725027616630,0.128,59243.0,59238.0,0.3608]
[1725027616824,0.128,59243.0,59239.0,0.084391]
[1725027617020,0.128,59243.0,59238.0,0.3608]
[1725027617221,0.128,59243.0,59241.0,0.084387]
[1725027617524,0.128,59243.0,59242.0,0.084386]
[1725027617838,0.128,59243.0,59242.0,0.805986]
[1725027618131,0.00025306,59247.0,59246.0,0.084381]
[1725027618321,0.00025306,59247.0,59246.0,0.30364198]
[1725027619024,0.00025306,59247.0,59246.0,1.41000198]
[1725027619425,0.00025306,59247.0,59246.0,0.81000198]
[1725027619628,0.00025306,59247.0,59246.0,0.30364198]
[1725027620132,0.00025306,59247.0,59246.0,1.41000198]
[1725027620322,0.00125306,59247.0,59246.0,0.30564198]
[1725027620525,0.00125306,59247.0,59246.0,0.48696198]
[1725027620724,0.05125306,59247.0,59246.0,0.48696198]
[1725027621838,0.05125306,59247.0,59246.0,0.99332198]
[1725027622025,0.05125306,59247.0,59246.0,1.59332198]
[1725027622635,0.00125306,59247.0,59246.0,1.59332198]
[1725027622933,0.1521,59273.0,59250.0,0.084375]
[1725027623124,0.1521,59273.0,59246.0,1.50694098]
[1725027623125,0.12,59273.0,59271.0,0.3608]
[1725027623327,0.12,59273.0,59272.0,0.084344]
[1725027623636,0.05,59273.0,59272.0,0.084344]
[1725027623935,0.05,59273.0,59270.0,0.18132]
[1725027624137,0.084345,59271.0,59270.0,0.18132]
[1725027624322,0.084349,59268.0,59267.0,0.00025315]
[1725027624524,0.710509,59268.0,59267.0,0.00025315]
[1725027624723,1.310509,59268.0,59267.0,0.00025315]
[1725027624932,0.707509,59268.0,59267.0,0.00025315]
[1725027625137,1.668309,59268.0,59267.0,0.00025315]
[1725027625528,1.752658,59268.0,59267.0,0.00025315]
[1725027625733,0.084369,59254.0,59253.0,0.3608]
[1725027625936,0.11,59254.0,59253.0,0.3608]
[1725027626636,0.11,59254.0,59243.0,0.36]
[1725027626831,0.11025315,59254.0,59243.0,0.36025315]
[1725027627325,0.11125315,59254.0,59243.0,0.36025315]
[1725027627528,0.11125315,59254.0,59249.0,0.36]
[1725027627734,0.11125315,59254.0,59247.0,0.00864901]
[1725027627923,0.3608,59253.0,59247.0,0.00864901]
[1725027628235,0.3608,59253.0,59249.0,0.3608]
[1725027628236,0.12,59253.0,59249.0,0.3608]
[1725027628532,0.084376,59250.0,59247.0,0.00864901]
[1725027628735,0.204376,59250.0,59243.0,0.36025315]
[1725027629332,0.12,59250.0,59243.0,0.36025315]
[1725027629533,0.084383,59245.0,59243.0,0.36025315]
[1725027629739,0.204383,59245.0,59243.0,0.36025315]
[1725027630038,0.445184,59244.0,59243.0,0.00025315]
[1725027630340,0.445184,59244.0,59236.0,0.18132]
[1725027630341,0.084394,59237.0,59236.0,0.18132]
[1725027630528,0.084404,59230.0,59227.0,0.084406]
[1725027630730,0.084404,59230.0,59223.0,0.084412]
[1725027630731,0.084409,59226.0,59223.0,0.084412]
[1725027630943,0.194409,59226.0,59220.0,0.18132]
[1725027631235,0.194409,59226.0,59222.0,0.3608]
[1725027631435,0.194409,59226.0,59217.0,0.00025315]
[1725027631436,0.4708,59226.0,59217.0,0.00025315]
[1725027631640,0.445221,59218.0,59217.0,0.00025315]
[1725027631839,0.11,59218.0,59217.0,0.00025315]
[1725027632040,0.11,59218.0,59217.0,0.36105315]
[1725027632234,0.096,59218.0,59217.0,0.00025315]
[1725027632538,0.4568,59218.0,59217.0,0.00025315]
[1725027632833,0.084442,59203.0,59197.0,0.0082502]
[1725027633025,0.13,59203.0,59193.0,0.3608]
[1725027633225,0.3608,59199.0,59193.0,0.3608]
[1725027633438,0.495248,59199.0,59193.0,0.3608]
[1725027633737,0.495248,59199.0,59187.0,0.18136]
[1725027633738,0.4108,59199.0,59190.0,0.00025338]
[1725027633937,0.084452,59196.0,59190.0,0.00025338]
[1725027634128,0.194452,59196.0,59190.0,0.00025338]
[1725027634329,0.11,59196.0,59190.0,0.00025338]
[1725027634629,0.11,59196.0,59193.0,0.3608]
[1725027634831,0.11,59196.0,59191.0,0.084459]
[1725027635136,0.111,59196.0,59190.0,0.00325338]
[1725027635337,0.3608,59195.0,59190.0,0.00325338]
[1725027635531,0.4708,59195.0,59190.0,0.00325338]
[1725027635736,0.084458,59192.0,59190.0,0.00325338]
[1725027635931,0.194458,59192.0,59190.0,0.00325338]
[1725027636530,0.50684,59191.0,59190.0,0.00325338]
[1725027636841,0.084474,59181.0,59173.0,0.0039]
[1725027637037,0.084474,59181.0,59172.0,0.445286]
[1725027637038,0.05,59181.0,59172.0,0.445286]
[1725027637238,0.05,59181.0,59172.0,0.084486]
[1725027637540,0.3608,59175.0,59173.0,0.084485]
[1725027637744,0.4108,59175.0,59168.0,0.445291]
[1725027638041,0.084503,59160.0,59159.0,0.00088]
[1725027638347,0.05,59160.0,59154.0,0.3608]
[1725027638537,0.3608,59157.0,59145.0,0.3608]
[1725027638737,0.3608,59157.0,59141.0,0.38797615]
[1725027639048,0.3608,59165.0,59147.0,0.3608]
[1725027639244,0.00025359,59155.0,59147.0,0.3608]
[1725027639434,0.00025359,59155.0,59152.0,0.3608]
[1725027639634,0.00025359,59155.0,59153.0,0.084513]
[1725027639830,0.084495,59166.0,59152.0,0.3608]
[1725027640039,0.3608,59176.0,59162.0,0.3608]
[1725027640337,0.3608,59176.0,59157.0,0.3608]
[1725027640338,0.084504,59160.0,59157.0,0.3608]
[1725027640532,0.084513,59154.0,59150.0,0.18148]
[1725027640733,0.3608,59156.0,59146.0,0.3608]
[1725027640938,0.4108,59156.0,59146.0,0.36105359]
[1725027641339,0.05,59156.0,59146.0,0.36105359]
[1725027641840,0.084521,59148.0,59146.0,0.00025359]
[1725027642049,0.134521,59148.0,59146.0,0.00025359]
[1725027642240,1.602521,59148.0,59146.0,0.00025359]
[1725027642439,0.05,59148.0,59146.0,0.00025359]
[1725027643134,0.05,59148.0,59146.0,0.08477659]
[1725027643551,0.05,59148.0,59146.0,0.00025359]
[1725027644043,0.05,59148.0,59144.0,0.32105359]
[1725027644440,0.05,59148.0,59139.0,0.3608]
[1725027644441,0.3608,59145.0,59133.0,0.3608]
[1725027644642,0.4708,59145.0,59133.0,0.3608]
[1725027644836,0.4708,59145.0,59135.0,0.084538]
[1725027645038,0.11,59145.0,59134.0,0.00025359]
[1725027645248,0.00025359,59146.0,59139.0,0.3608]
[1725027645445,0.05025359,59146.0,59134.0,0.00025359]
[1725027645640,0.05025359,59146.0,59144.0,0.3608]
[1725027645951,0.05025359,59146.0,59139.0,0.3608]
[1725027646449,0.05025359,59146.0,59144.0,0.3608]
[1725027646859,0.05025359,59146.0,59144.0,0.445326]
[1725027647151,0.3608,59169.0,59145.0,0.693]
[1725027647355,0.3608,59169.0,59144.0,0.7908]
[1725027647356,0.084511,59155.0,59144.0,0.7908]
[1725027647544,0.094511,59155.0,59145.0,0.18576]
[1725027647751,0.01,59155.0,59145.0,0.18576]
[1725027647946,0.084518,59150.0,59145.0,0.18576]
[1725027648250,0.07,59150.0,59145.0,0.18576]
[1725027648453,0.5772,59150.0,59144.0,0.36105359]
[1725027648647,0.084525,59145.0,59144.0,0.00025359]
[1725027648854,0.204525,59145.0,59144.0,0.00025359]
[1725027649042,1.311765,59145.0,59144.0,0.00025359]
[1725027649856,1.311765,59145.0,59131.0,0.18576]
[1725027649857,0.084543,59132.0,59131.0,0.3608]
[1725027650148,0.214543,59132.0,59131.0,0.3608]
[1725027650453,0.214543,59132.0,59126.0,0.3608]
[1725027650454,1.23736,59132.0,59126.0,0.3608]
[1725027650658,0.3608,59127.0,59119.0,0.3608]
[1725027650848,0.11,59127.0,59119.0,0.3608]
[1725027651547,0.11,59127.0,59124.0,0.3608]
[1725027651952,0.11,59127.0,59119.0,0.3608]
[1725027652153,0.11,59127.0,59123.0,0.3608]
[1725027652346,0.11,59127.0,59117.0,0.00025359]
[1725027652347,0.084563,59119.0,59117.0,0.00025359]
[1725027652549,0.11,59119.0,59117.0,0.00025359]
[1725027652964,0.11,59119.0,59117.0,0.08481659]
[1725027653163,0.11,59119.0,59117.0,0.18609359]
[1725027653363,0.11,59119.0,59117.0,0.00025359]
[1725027653868,0.06,59119.0,59117.0,0.36105359]
[1725027654073,0.07,59125.0,59117.0,0.36105359]
[1725027654276,0.07,59125.0,59124.0,0.3608]
[1725027654277,0.01,59125.0,59124.0,0.3608]
[1725027654482,0.1387,59147.0,59124.0,0.3608]
[1725027654483,0.38681371,59151.0,59128.0,0.084549]
[1725027654661,0.0039,59156.0,59143.0,0.084527]
[1725027654969,0.3608,59153.0,59140.0,0.3608]
[1725027655179,0.4708,59153.0,59147.0,0.3608]
[1725027655560,0.7908,59148.0,59144.0,0.00025359]
[1725027655761,0.3608,59146.0,59127.0,0.0039]
[1725027655968,0.3608,59146.0,59119.0,0.3608]
[1725027655969,0.3608,59133.0,59120.0,0.18584]
[1725027656163,0.084552,59126.0,59120.0,0.18584]
[1725027656462,0.144552,59126.0,59120.0,0.18584]
[1725027656662,0.06,59126.0,59120.0,0.18584]
[1725027657069,0.06,59126.0,59123.0,0.084556]
[1725027657368,0.06,59126.0,59120.0,0.54764]
[1725027657575,0.06,59126.0,59120.0,0.54664]
[1725027657972,0.06,59126.0,59125.0,0.3608]
[1725027658176,0.06,59126.0,59125.0,0.445353]
[1725027658376,0.00025359,59129.0,59128.0,0.084549]
[1725027658573,0.4982,59152.0,59128.0,0.084549]
[1725027658574,0.084519,59149.0,59128.0,0.9608]
[1725027658873,0.084519,59149.0,59140.0,0.3608]
[1725027658874,0.11,59149.0,59140.0,0.3608]
[1725027659063,0.11,59149.0,59147.0,0.3608]
[1725027659267,0.11,59149.0,59140.0,0.3608]
[1725027659268,0.11,59149.0,59142.0,0.084529]
[1725027659474,0.11,59149.0,59145.0,0.3608]
[1725027659676,0.11,59149.0,59144.0,0.3608]
[1725027659879,0.05,59149.0,59144.0,0.3608]
[1725027660568,0.05,59149.0,59144.0,0.445326]
[1725027660873,0.05,59149.0,59144.0,0.3608]
[1725027661176,0.05,59149.0,59146.0,0.084522]
[1725027661873,0.05,59149.0,59143.0,0.3608]
[1725027662071,0.05,59149.0,59148.0,0.3608]
[1725027662570,0.05,59149.0,59148.0,0.868]
[1725027662767,0.05,59149.0,59148.0,0.952521]
[1725027662969,0.05,59149.0,59148.0,0.868]
[1725027663167,0.00025359,59153.0,59148.0,0.3608]
[1725027663369,0.11025359,59153.0,59148.0,0.3608]
[1725027663573,0.084518,59151.0,59149.0,0.18588]
[1725027663769,0.11,59151.0,59148.0,0.3608]
[1725027664075,0.084522,59147.0,59146.0,0.18588]
[1725027664275,0.084522,59147.0,59143.0,0.0503212]
[1725027664276,0.13,59147.0,59143.0,0.0503212]
[1725027664479,0.13,59147.0,59142.0,0.2361612]
[1725027664673,0.13,59147.0,59146.0,0.084523]
[1725027664874,0.00025359,59153.0,59146.0,0.5072]
[1725027665077,0.00025359,59153.0,59145.0,0.3608]
[1725027665078,0.11025359,59153.0,59152.0,0.084515]
[1725027665468,0.11025359,59153.0,59151.0,0.06707172]
[1725027665874,0.11025359,59153.0,59152.0,0.06707172]
[1725027666081,0.11025359,59153.0,59152.0,0.07566753]
[1725027666279,0.11025359,59153.0,59152.0,1.20027081]
[1725027666477,0.084484,59174.0,59161.0,0.084501]
[1725027666683,0.214484,59174.0,59172.0,0.3608]
[1725027667075,0.084485,59173.0,59172.0,0.3608]
[1725027667387,0.154485,59173.0,59172.0,0.3608]
[1725027667584,0.084486,59172.0,59171.0,0.05039448]
[1725027667880,0.084486,59172.0,59171.0,0.3608]
[1725027667881,0.05,59172.0,59171.0,0.3608]
[1725027668077,0.05,59172.0,59167.0,0.06742529]
[1725027668278,0.134488,59172.0,59171.0,0.05039701]
[1725027668484,0.084488,59171.0,59170.0,0.05039701]
[1725027668671,0.11,59171.0,59170.0,0.05039701]
[1725027668873,0.4708,59171.0,59167.0,0.00025359]
[1725027669073,0.084492,59168.0,59167.0,0.06742722]
[1725027669273,0.13,59168.0,59167.0,0.00025359]
[1725027669876,0.214492,59168.0,59167.0,0.00025359]
[1725027670078,0.13,59168.0,59167.0,0.00025359]
[1725027670278,0.214492,59168.0,59167.0,0.00025359]
[1725027670484,0.298984,59168.0,59167.0,0.00025359]
[1725027670671,0.298984,59168.0,59167.0,0.05062107]
[1725027670877,0.214492,59168.0,59167.0,0.00025359]
[1725027671076,0.214492,59168.0,59167.0,0.05062107]
[1725027671284,0.214492,59168.0,59167.0,0.00025359]
[1725027671682,0.13,59168.0,59167.0,0.00025359]
[1725027671873,0.214492,59168.0,59167.0,0.00025359]
[1725027674375,0.13,59168.0,59167.0,0.06742722]
[1725027674692,0.00025359,59178.0,59167.0,1.46809359]
[1725027674877,0.00025359,59178.0,59177.0,0.51236111]
[1725027675075,0.00025359,59178.0,59177.0,1.313039]
[1725027675277,0.00025359,59178.0,59177.0,1.913039]
[1725027675887,0.00025359,59178.0,59177.0,2.04175316]
[1725027676084,0.00025359,59178.0,59177.0,0.93479316]
[1725027676291,0.00025359,59178.0,59177.0,0.9084]
[1725027676482,0.00025359,59178.0,59177.0,0.992879]
[1725027677180,0.00025359,59178.0,59177.0,2.1500381]
[1725027677581,0.00025359,59178.0,59177.0,2.099799]
[1725027678093,0.00025359,59178.0,59177.0,2.15000232]
[1725027678287,0.00025359,59178.0,59177.0,2.58000232]
[1725027678584,0.00025359,59178.0,59177.0,2.529799]
[1725027678982,0.00025359,59178.0,59177.0,2.5294997]
[1725027679379,0.3608,59202.0,59182.0,0.084472]
[1725027679580,0.12,59202.0,59199.0,0.3608]
[1725027679782,0.12,59202.0,59199.0,0.54756]
[1725027680391,0.08445,59198.0,59195.0,0.00025338]
[1725027680579,0.05,59198.0,59195.0,0.00025338]
[1725027680982,0.05,59198.0,59197.0,0.3608]
[1725027682081,0.05,59198.0,59195.0,0.00025338]
[1725027682286,0.445252,59196.0,59195.0,0.00025338]
[1725027682488,0.639704,59196.0,59195.0,0.00025338]
[1725027682684,1.746504,59196.0,59195.0,0.00025338]
[1725027682889,1.874304,59196.0,59195.0,0.00025338]
[1725027683082,0.084466,59187.0,59180.0,0.3608]
[1725027683282,0.11,59187.0,59180.0,0.3608]
[1725027683593,0.11,59187.0,59185.0,0.3608]
[1725027683895,0.11,59187.0,59186.0,0.084466]
[1725027684092,0.11,59187.0,59185.0,0.3608]
[1725027684298,0.11,59187.0,59181.0,0.00025338]
[1725027684889,0.084472,59183.0,59181.0,0.00025338]
[1725027685086,0.084472,59182.0,59181.0,0.00025338]
[1725027685283,0.795864,59182.0,59181.0,0.00025338]
[1725027685489,0.204472,59182.0,59181.0,0.00025338]
[1725027686516,0.12,59182.0,59181.0,0.00025338]
[1725027687383,1.311392,59182.0,59181.0,0.00025338]
[1725027687589,0.12,59182.0,59181.0,0.00025338]
[1725027687995,0.204472,59182.0,59181.0,0.00025338]
[1725027689104,1.395864,59182.0,59181.0,0.00025338]
[1725027689398,0.795864,59182.0,59181.0,0.00025338]
[1725027689791,0.711392,59182.0,59181.0,0.00025338]
[1725027689991,0.795864,59182.0,59181.0,0.00025338]
[1725027690192,1.480336,59182.0,59181.0,0.00025338]
[1725027690391,1.480336,59182.0,59164.0,0.084497]
[1725027690392,0.084492,59168.0,59164.0,0.084497]
[1725027690594,0.194492,59168.0,59167.0,0.3608]
[1725027690801,0.11,59168.0,59167.0,0.445293]
[1725027691498,0.11,59168.0,59163.0,0.084498]
[1725027692198,0.084499,59163.0,59162.0,0.54449338]
[1725027692399,0.194499,59163.0,59162.0,0.54361338]
[1725027692702,0.194499,59163.0,59162.0,0.00025338]
[1725027694094,1.301579,59163.0,59162.0,0.00025338]
[1725027694295,1.301579,59163.0,59157.0,0.05020332]
[1725027694296,0.169012,59158.0,59157.0,0.05020332]
[1725027694493,0.734318,59158.0,59157.0,0.05020332]
[1725027694696,0.734318,59158.0,59152.0,0.06698547]
[1725027694697,0.169026,59153.0,59152.0,0.06698547]
[1725027694898,0.649826,59153.0,59152.0,0.06698547]
[1725027695093,1.58796,59153.0,59147.0,0.08378296]
[1725027695296,0.445321,59148.0,59147.0,0.08378296]
[1725027695494,1.717042,59148.0,59147.0,0.08378296]
[1725027695695,0.084529,59142.0,59141.0,0.10018733]